fUST/lending_fUST_20250210
["ID","MTS","AMOUNT","RATE_DAILY","PERIOD"]
[352515588,1739146247093,-500.0,0.00011369,2]
[352515589,1739146247181,-2815.39,0.00011369,2]
[352515590,1739146247201,-500.0,0.00011369,2]
[352515591,1739146247212,-500.0,0.00011369,2]
[352515592,1739146247223,-500.0,0.00011369,2]
[352515593,1739146247233,-500.0,0.00011369,2]
[352515594,1739146247243,-500.0,0.00011369,2]
[352515595,1739146247253,-1413.66,0.00011369,2]
[352515596,1739146247265,-500.0,0.00011369,2]
[352515597,1739146247275,-500.0,0.00011369,2]
[352515598,1739146247285,-500.0,0.00011369,2]
[352515599,1739146247295,-500.0,0.00011369,2]
[352515600,1739146247305,-9547.74,0.00011369,2]
[352515601,1739146247316,-600.42,0.00011369,2]
[352515602,1739146247326,-6910.01,0.00011369,2]
[352515603,1739146247336,-500.0,0.00011369,2]
[352515604,1739146247346,-550.72,0.00011369,2]
[352515605,1739146247357,-500.0,0.00011369,2]
[352515606,1739146247368,-500.0,0.00011369,2]
[352515607,1739146247377,-3346.66,0.00011369,2]
[352515608,1739146247388,-3213.66,0.00011369,2]
[352515609,1739146247398,-500.0,0.00011369,2]
[352515610,1739146247407,-3261.75,0.00011369,2]
[352515611,1739146247418,-506.88345466,0.00011369,2]
[352515612,1739146247427,-500.0,0.00011369,2]
[352515613,1739146247438,-500.0,0.00011369,2]
[352515614,1739146247449,-809.81,0.00011369,2]
[352515615,1739146247461,-1761.83,0.00011369,2]
[352515616,1739146247471,-500.0,0.00011369,2]
[352515617,1739146247481,-500.0,0.00011369,2]
[352515618,1739146247491,-955.68,0.00011369,2]
[352515619,1739146247502,-500.0,0.00011369,2]
[352515620,1739146247513,-254.69,0.00011369,2]
[352515621,1739146247524,-500.0,0.00011369,2]
[352515622,1739146247534,-500.0,0.00011369,2]
[352515623,1739146247544,-500.0,0.00011369,2]
[352515624,1739146247557,-500.0,0.00011369,2]
[352515625,1739146247568,-500.0,0.00011369,2]
[352515626,1739146247578,-500.0,0.00011369,2]
[352515627,1739146247588,-15127.72,0.00011369,2]
[352515628,1739146247599,-500.0,0.00011369,2]
[352515629,1739146247612,-1300.71,0.00011369,2]
[352515630,1739146247622,-1255.54,0.00011369,2]
[352515631,1739146247631,-298.66,0.00011369,2]
[352515632,1739146247641,-902.82,0.00011369,2]
[352515633,1739146247650,-552.64,0.00011369,2]
[352515634,1739146247659,-500.0,0.00011369,2]
[352515635,1739146247670,-11240.82,0.00011369,2]
[352515636,1739146247680,-1665.46,0.00011369,2]
[352515637,1739146247690,-500.0,0.00011369,2]
[352515638,1739146247699,-361.7727269,0.00011369,2]
[352515639,1739146247710,-500.0,0.00011369,2]
[352515640,1739146247720,-1372.43,0.00011369,2]
[352515641,1739146247730,-500.0,0.00011369,2]
[352515642,1739146247740,-500.0,0.00011369,2]
[352515643,1739146247750,-500.0,0.00011369,2]
[352515644,1739146247760,-500.0,0.00011369,2]
[352515645,1739146247771,-871.63,0.00011369,2]
[352515646,1739146247780,-500.0,0.00011369,2]
[352515647,1739146247790,-893.65,0.00011369,2]
[352515648,1739146247802,-500.0,0.00011369,2]
[352515649,1739146247812,-500.0,0.00011369,2]
[352515650,1739146247822,-555.72,0.00011369,2]
[352515651,1739146247832,-500.0,0.00011369,2]
[352515652,1739146247842,-500.0,0.00011369,2]
[352515653,1739146247853,-500.0,0.00011369,2]
[352515654,1739146247862,-500.0,0.00011369,2]
[352515655,1739146247872,-500.0,0.00011369,2]
[352515656,1739146247882,-500.0,0.00011369,2]
[352515657,1739146247893,-500.0,0.00011369,2]
[352515658,1739146247903,-651.08,0.00011369,2]
[352515659,1739146247914,-500.0,0.00011369,2]
[352515660,1739146247924,-500.0,0.00011369,2]
[352515661,1739146247933,-708.55,0.00011369,2]
[352515662,1739146247943,-500.0,0.00011369,2]
[352515663,1739146247953,-500.0,0.00011369,2]
[352515664,1739146247964,-500.0,0.00011369,2]
[352515665,1739146247975,-500.0,0.00011369,2]
[352515666,1739146247985,-500.0,0.00011369,2]
[352515667,1739146247995,-1666.17,0.00011369,2]
[352515668,1739146248005,-689.51,0.00011369,2]
[352515669,1739146248016,-500.0,0.00011369,2]
[352515670,1739146248026,-205.83684363,0.00011369,2]
[352515671,1739146248037,-500.0,0.00011369,2]
[352515672,1739146248047,-970.62,0.00011369,2]
[352515673,1739146248057,-500.0,0.00011369,2]
[352515674,1739146248067,-925.51,0.00011369,2]
[352515675,1739146248078,-500.0,0.00011369,2]
[352515676,1739146248088,-501.84,0.00011369,2]
[352515677,1739146248098,-520.47294432,0.00011369,2]
[352515678,1739146248110,-500.0,0.00011369,2]
[352515679,1739146248120,-500.0,0.00011369,2]
[352515680,1739146248134,-2061.54,0.00011369,2]
[352515681,1739146248144,-500.0,0.00011369,2]
[352515682,1739146248155,-520.83,0.00011369,2]
[352515683,1739146248166,-500.0,0.00011369,2]
[352515684,1739146248177,-500.0,0.00011369,2]
[352515685,1739146248188,-500.8,0.00011369,2]
[352515686,1739146248199,-500.0,0.00011369,2]
[352515687,1739146248210,-500.0,0.00011369,2]
[352515688,1739146248222,-500.0,0.00011369,2]
[352515689,1739146248232,-500.0,0.00011369,2]
[352515690,1739146248242,-500.0,0.00011369,2]
[352515691,1739146248253,-151.0,0.000114,2]
[352515692,1739146248265,-1934.91278531,0.00011482,2]
[352515693,1739146248277,-151.0,0.000115,2]
[352515694,1739146248288,-633.47,0.00011506,2]
[352515695,1739146248299,-416.35,0.00011506,2]
[352515696,1739146248310,-500.0,0.00011506,2]
[352515697,1739146248321,-500.0,0.00011506,2]
[352515698,1739146248331,-500.0,0.00011506,2]
[352515699,1739146248343,-500.0,0.00011506,2]
[352515700,1739146248354,-500.0,0.00011506,2]
[352515701,1739146248365,-500.0,0.00011506,2]
[352515702,1739146248375,-6616.65682713,0.00011506,4]
[352515703,1739146248385,-357.12185629,0.00011506,2]
[352515704,1739146248396,-500.0,0.00011506,2]
[352515705,1739146248406,-836.94,0.00011506,2]
[352515706,1739146248417,-500.0,0.00011506,2]
[352515707,1739146248429,-500.0,0.00011506,2]
[352515708,1739146248439,-500.0,0.00011506,2]
[352515709,1739146248451,-500.0,0.00011506,2]
[352515710,1739146248462,-500.0,0.00011506,2]
[352515711,1739146248473,-543.31627206,0.00011506,2]
[352515712,1739146248483,-500.0,0.00011506,2]
[352515713,1739146248496,-500.0,0.00011506,2]
[352515714,1739146248508,-500.0,0.00011506,2]
[352515715,1739146248519,-500.0,0.00011506,2]
[352515716,1739146248530,-500.0,0.00011506,2]
[352515717,1739146248540,-500.0,0.00011506,2]
[352515718,1739146248551,-864.82,0.00011506,2]
[352515719,1739146248562,-500.0,0.00011506,2]
[352515720,1739146248573,-500.0,0.00011506,2]
[352515721,1739146248583,-500.0,0.00011506,2]
[352515722,1739146248594,-500.0,0.00011506,2]
[352515723,1739146248606,-500.0,0.00011506,2]
[352515724,1739146248618,-500.0,0.00011506,2]
[352515725,1739146248629,-500.0,0.00011506,2]
[352515726,1739146248641,-500.0,0.00011506,2]
[352515727,1739146248652,-410.4,0.00011506,2]
[352515728,1739146248663,-594.32,0.00011506,2]
[352515729,1739146248674,-500.0,0.00011506,2]
[352515730,1739146248685,-500.0,0.00011506,2]
[352515731,1739146248695,-500.0,0.00011506,2]
[352515732,1739146248706,-500.0,0.00011506,2]
[352515733,1739146248718,-500.0,0.00011506,2]
[352515734,1739146248729,-1767.18,0.00011506,2]
[352515735,1739146248740,-500.0,0.00011506,2]
[352515736,1739146248750,-500.0,0.00011506,2]
[352515737,1739146248761,-500.0,0.00011506,2]
[352515738,1739146248772,-500.0,0.00011506,2]
[352515739,1739146248783,-500.0,0.00011506,2]
[352515740,1739146248794,-500.0,0.00011506,2]
[352515741,1739146248805,-511.03,0.00011506,2]
[352515742,1739146248815,-504.80449704,0.00011506,2]
[352515743,1739146248826,-500.0,0.00011506,2]
[352515744,1739146248836,-578.91,0.00011506,2]
[352515745,1739146248847,-500.0,0.00011506,2]
[352515746,1739146248859,-500.0,0.00011506,2]
[352515747,1739146248870,-500.0,0.00011506,2]
[352515748,1739146248881,-500.0,0.00011506,2]
[352515749,1739146248892,-194.84084991,0.00011506,2]
[352515750,1739146248903,-500.0,0.00011506,2]
[352515751,1739146248914,-500.0,0.00011506,2]
[352515752,1739146248924,-500.0,0.00011506,2]
[352515753,1739146248935,-514.23,0.00011506,2]
[352515754,1739146248945,-500.0,0.00011506,2]
[352515755,1739146248956,-500.0,0.00011506,2]
[352515756,1739146248967,-500.0,0.00011506,2]
[352515757,1739146248979,-500.0,0.00011506,2]
[352515758,1739146248991,-500.0,0.00011506,2]
[352515759,1739146249002,-2815.39,0.00011506,2]
[352515760,1739146249013,-552.0525538,0.00011506,2]
[352515761,1739146249023,-500.0,0.00011506,2]
[352515762,1739146249034,-500.0,0.00011506,2]
[352515763,1739146249045,-1413.66,0.00011506,2]
[352515764,1739146249055,-500.0,0.00011506,2]
[352515765,1739146249066,-500.0,0.00011506,2]
[352515766,1739146249077,-500.0,0.00011506,2]
[352515767,1739146249088,-500.0,0.00011506,2]
[352515768,1739146249098,-9547.74,0.00011506,2]
[352515769,1739146249115,-600.42,0.00011506,2]
[352515770,1739146249126,-6910.01,0.00011506,2]
[352515771,1739146249137,-500.0,0.00011506,2]
[352515772,1739146249148,-550.72,0.00011506,2]
[352515773,1739146249256,-500.0,0.00011506,2]
[352515774,1739146249272,-500.0,0.00011506,2]
[352515775,1739146249283,-3346.66,0.00011506,2]
[352515776,1739146249294,-3213.66,0.00011506,2]
[352515777,1739146249307,-500.0,0.00011506,2]
[352515778,1739146249319,-3261.75,0.00011506,2]
[352515779,1739146249330,-500.0,0.00011506,2]
[352515780,1739146249342,-500.0,0.00011506,2]
[352515781,1739146249354,-809.81,0.00011506,2]
[352515782,1739146249367,-1761.83,0.00011506,2]
[352515783,1739146249377,-500.0,0.00011506,2]
[352515784,1739146249388,-500.0,0.00011506,2]
[352515785,1739146249400,-955.68,0.00011506,2]
[352515786,1739146249412,-500.0,0.00011506,2]
[352515787,1739146249424,-500.0,0.00011506,2]
[352515788,1739146249435,-500.0,0.00011506,2]
[352515789,1739146249447,-500.0,0.00011506,2]
[352515790,1739146249459,-15127.72,0.00011506,2]
[352515791,1739146249470,-500.0,0.00011506,2]
[352515792,1739146249482,-1300.71,0.00011506,2]
[352515793,1739146249493,-1255.54,0.00011506,2]
[352515794,1739146249505,-902.82,0.00011506,2]
[352515795,1739146249516,-552.64,0.00011506,2]
[352515796,1739146249527,-500.0,0.00011506,2]
[352515797,1739146249538,-11240.82,0.00011506,2]
[352515798,1739146249549,-1665.46,0.00011506,2]
[352515799,1739146249560,-390.46,0.00011506,2]
[352515800,1739146249571,-1372.43,0.00011506,2]
[352515801,1739146249582,-500.0,0.00011506,2]
[352515802,1739146249593,-500.0,0.00011506,2]
[352515803,1739146249605,-500.0,0.00011506,2]
[352515804,1739146249615,-500.0,0.00011506,2]
[352515805,1739146249625,-871.63,0.00011506,2]
[352515806,1739146249636,-500.0,0.00011506,2]
[352515807,1739146249648,-893.65,0.00011506,2]
[352515808,1739146249657,-500.0,0.00011506,2]
[352515809,1739146249668,-500.0,0.00011506,2]
[352515810,1739146249678,-555.72,0.00011506,2]
[352515811,1739146249688,-500.0,0.00011506,2]
[352515812,1739146249698,-500.0,0.00011506,2]
[352515813,1739146249708,-500.0,0.00011506,2]
[352515814,1739146249718,-500.0,0.00011506,2]
[352515815,1739146249728,-500.0,0.00011506,2]
[352515816,1739146249738,-500.0,0.00011506,2]
[352515817,1739146249747,-651.08,0.00011506,2]
[352515818,1739146249757,-500.0,0.00011506,2]
[352515819,1739146249767,-500.0,0.00011506,2]
[352515820,1739146249777,-708.55,0.00011506,2]
[352515821,1739146249786,-500.0,0.00011506,2]
[352515822,1739146249797,-500.0,0.00011506,2]
[352515823,1739146249807,-503.02,0.00011506,2]
[352515824,1739146249818,-500.0,0.00011506,2]
[352515825,1739146249827,-1666.17,0.00011506,2]
[352515826,1739146249838,-689.51,0.00011506,2]
[352515827,1739146249849,-425.84481811,0.00011506,2]
[352515828,1739146249859,-500.0,0.00011506,2]
[352515829,1739146249869,-970.62,0.00011506,2]
[352515830,1739146249881,-599.8991434,0.00011506,2]
[352515831,1739146249897,-925.51,0.00011506,2]
[352515832,1739146249907,-500.0,0.00011506,2]
[352515833,1739146249917,-501.84,0.00011506,2]
[352515834,1739146249927,-500.0,0.00011506,2]
[352515835,1739146249937,-500.0,0.00011506,2]
[352515836,1739146249946,-2061.54,0.00011506,2]
[352515837,1739146249956,-198.04,0.00011506,2]
[352515838,1739146249966,-520.83,0.00011506,2]
[352515839,1739146249975,-500.0,0.00011506,2]
[352515840,1739146249985,-500.8,0.00011506,2]
[352515841,1739146249994,-187.99308882,0.00011506,2]
[352515842,1739146250004,-500.0,0.00011506,2]
[352515843,1739146250015,-500.0,0.00011506,2]
[352515844,1739146250024,-500.0,0.00011506,2]
[352515845,1739146250034,-500.0,0.00011506,2]
[352515846,1739146250044,-151.0,0.000116,2]
[352515847,1739146250053,-151.0,0.000116,2]
[352515848,1739146250063,-1669.6044943,0.00011627,2]
[352515849,1739146250072,-500.0,0.00011643,2]
[352515850,1739146250082,-500.0,0.00011643,2]
[352515851,1739146250092,-500.0,0.00011643,2]
[352515852,1739146250102,-500.0,0.00011643,2]
[352515853,1739146250112,-500.0,0.00011643,2]
[352515854,1739146250122,-500.0,0.00011643,2]
[352515855,1739146250132,-500.0,0.00011643,2]
[352515856,1739146250141,-836.94,0.00011643,2]
[352515857,1739146250151,-562.36324636,0.00011643,2]
[352515858,1739146250160,-500.0,0.00011643,2]
[352515859,1739146250170,-500.0,0.00011643,2]
[352515860,1739146250179,-500.0,0.00011643,2]
[352515861,1739146250188,-500.0,0.00011643,2]
[352515862,1739146250198,-500.0,0.00011643,2]
[352515863,1739146250207,-334.62517103,0.00011643,2]
[352515864,1739146250217,-500.0,0.00011643,2]
[352515865,1739146250227,-500.0,0.00011643,2]
[352515866,1739146250236,-500.0,0.00011643,2]
[352515867,1739146250245,-864.82,0.00011643,2]
[352515868,1739146250255,-500.0,0.00011643,2]
[352515869,1739146250266,-500.0,0.00011643,2]
[352515870,1739146250276,-500.0,0.00011643,2]
[352515871,1739146250286,-500.0,0.00011643,2]
[352515872,1739146250295,-500.0,0.00011643,2]
[352515873,1739146250305,-500.0,0.00011643,2]
[352515874,1739146250316,-500.0,0.00011643,2]
[352515875,1739146250325,-500.0,0.00011643,2]
[352515876,1739146250334,-500.0,0.00011643,2]
[352515877,1739146250345,-500.0,0.00011643,2]
[352515878,1739146250356,-500.0,0.00011643,2]
[352515879,1739146250366,-500.0,0.00011643,2]
[352515880,1739146250375,-1767.18,0.00011643,2]
[352515881,1739146250386,-500.0,0.00011643,2]
[352515882,1739146250395,-500.0,0.00011643,2]
[352515883,1739146250404,-500.0,0.00011643,2]
[352515884,1739146250414,-597.13,0.00011643,2]
[352515885,1739146250425,-500.0,0.00011643,2]
[352515886,1739146250434,-500.0,0.00011643,2]
[352515887,1739146250444,-511.03,0.00011643,2]
[352515888,1739146250453,-500.0,0.00011643,2]
[352515889,1739146250462,-578.91,0.00011643,2]
[352515890,1739146250472,-473.61,0.00011643,2]
[352515891,1739146250482,-500.0,0.00011643,2]
[352515892,1739146250491,-500.0,0.00011643,2]
[352515893,1739146250501,-500.0,0.00011643,2]
[352515894,1739146250510,-500.0,0.00011643,2]
[352515895,1739146250519,-500.0,0.00011643,2]
[352515896,1739146250529,-579.7583026,0.00011643,2]
[352515897,1739146250538,-500.0,0.00011643,2]
[352515898,1739146250547,-500.0,0.00011643,2]
[352515899,1739146250557,-500.0,0.00011643,2]
[352515900,1739146250567,-437.36013187,0.00011643,2]
[352515901,1739146250577,-500.0,0.00011643,2]
[352515902,1739146250587,-2815.39,0.00011643,2]
[352515903,1739146250596,-516.6680374,0.00011643,2]
[352515904,1739146250607,-500.0,0.00011643,2]
[352515905,1739146250618,-1413.66,0.00011643,2]
[352515906,1739146250627,-619.41596141,0.00011643,2]
[352515907,1739146250636,-234.02,0.00011643,2]
[352515908,1739146250645,-500.0,0.00011643,2]
[352515909,1739146250654,-9547.74,0.00011643,2]
[352515910,1739146250663,-600.42,0.00011643,2]
[352515911,1739146250673,-6910.01,0.00011643,2]
[352515912,1739146250682,-505.87,0.00011643,2]
[352515913,1739146250691,-550.72,0.00011643,2]
[352515914,1739146250701,-500.0,0.00011643,2]
[352515915,1739146250711,-500.0,0.00011643,2]
[352515916,1739146250720,-3346.66,0.00011643,2]
[352515917,1739146250731,-3213.66,0.00011643,2]
[352515918,1739146250740,-500.0,0.00011643,2]
[352515919,1739146250749,-3261.75,0.00011643,2]
[352515920,1739146250758,-500.0,0.00011643,2]
[352515921,1739146250767,-500.0,0.00011643,2]
[352515922,1739146250776,-1761.83,0.00011643,2]
[352515923,1739146250785,-809.81,0.00011643,2]
[352515924,1739146250795,-500.0,0.00011643,2]
[352515925,1739146250804,-500.0,0.00011643,2]
[352515926,1739146250813,-955.68,0.00011643,2]
[352515927,1739146250823,-500.0,0.00011643,2]
[352515928,1739146250832,-500.0,0.00011643,2]
[352515929,1739146250842,-500.0,0.00011643,2]
[352515930,1739146250852,-500.0,0.00011643,2]
[352515931,1739146250862,-15127.72,0.00011643,2]
[352515932,1739146250872,-500.0,0.00011643,2]
[352515933,1739146250881,-1300.71,0.00011643,2]
[352515934,1739146250891,-1255.54,0.00011643,2]
[352515935,1739146250900,-902.82,0.00011643,2]
[352515936,1739146250909,-552.64,0.00011643,2]
[352515937,1739146250918,-500.0,0.00011643,2]
[352515938,1739146250928,-11240.82,0.00011643,2]
[352515939,1739146250938,-1665.46,0.00011643,2]
[352515940,1739146250947,-1372.43,0.00011643,2]
[352515941,1739146250956,-500.0,0.00011643,2]
[352515942,1739146251041,-185.57782604,0.00011643,2]
[352515943,1739146251051,-500.0,0.00011643,2]
[352515944,1739146251061,-500.0,0.00011643,2]
[352515945,1739146251071,-871.63,0.00011643,2]
[352515946,1739146251080,-500.0,0.00011643,2]
[352515947,1739146251090,-893.65,0.00011643,2]
[352515948,1739146251100,-500.0,0.00011643,2]
[352515949,1739146251111,-500.0,0.00011643,2]
[352515950,1739146251121,-555.72,0.00011643,2]
[352515951,1739146251130,-259.49,0.00011643,2]
[352515952,1739146251140,-500.0,0.00011643,2]
[352515953,1739146251149,-500.0,0.00011643,2]
[352515954,1739146251159,-500.0,0.00011643,2]
[352515955,1739146251168,-500.0,0.00011643,2]
[352515956,1739146251178,-651.08,0.00011643,2]
[352515957,1739146251187,-500.0,0.00011643,2]
[352515958,1739146251196,-244.61,0.00011643,2]
[352515959,1739146251206,-708.55,0.00011643,2]
[352515960,1739146251216,-500.0,0.00011643,2]
[352515961,1739146251226,-500.0,0.00011643,2]
[352515962,1739146251235,-376.10915311,0.00011643,2]
[352515963,1739146251245,-1666.17,0.00011643,2]
[352515964,1739146251255,-689.51,0.00011643,2]
[352515965,1739146251266,-500.0,0.00011643,2]
[352515966,1739146251277,-970.62,0.00011643,2]
[352515967,1739146251286,-925.51,0.00011643,2]
[352515968,1739146251295,-501.84,0.00011643,2]
[352515969,1739146251306,-500.0,0.00011643,2]
[352515970,1739146251317,-2061.54,0.00011643,2]
[352515971,1739146251326,-520.83,0.00011643,2]
[352515972,1739146251335,-500.0,0.00011643,2]
[352515973,1739146251345,-500.8,0.00011643,2]
[352515974,1739146251354,-500.0,0.00011643,2]
[352515975,1739146251363,-500.0,0.00011643,2]
[352515976,1739146251372,-500.0,0.00011643,2]
[352515977,1739146251382,-502.39802918,0.00011643,2]
[352515978,1739146251391,-151.0,0.000117,2]
[352515979,1739146251400,-1600.22557392,0.00011733,2]
[352515980,1739146251410,-372.42414388,0.0001178,2]
[352515981,1739146251419,-500.0,0.0001178,2]
[352515982,1739146251428,-346.26422426,0.0001178,2]
[352515983,1739146251438,-500.0,0.0001178,2]
[352515984,1739146251447,-500.0,0.0001178,2]
[352515985,1739146251456,-500.0,0.0001178,2]
[352515986,1739146251466,-500.0,0.0001178,2]
[352515987,1739146251476,-836.94,0.0001178,2]
[352515988,1739146251486,-500.0,0.0001178,2]
[352515989,1739146251495,-500.0,0.0001178,2]
[352515990,1739146251504,-500.0,0.0001178,2]
[352515991,1739146251514,-500.0,0.0001178,2]
[352515992,1739146251524,-500.0,0.0001178,2]
[352515993,1739146251534,-500.0,0.0001178,2]
[352515994,1739146251544,-500.0,0.0001178,2]
[352515995,1739146251553,-341.22143357,0.0001178,2]
[352515996,1739146251562,-864.82,0.0001178,2]
[352515997,1739146251571,-158.61,0.0001178,2]
[352515998,1739146251581,-500.0,0.0001178,2]
[352515999,1739146251590,-500.0,0.0001178,2]
[352516000,1739146251599,-500.0,0.0001178,2]
[352516001,1739146251610,-500.0,0.0001178,2]
[352516002,1739146251619,-500.0,0.0001178,2]
[352516003,1739146251629,-500.0,0.0001178,2]
[352516004,1739146251638,-500.0,0.0001178,2]
[352516005,1739146251649,-500.0,0.0001178,2]
[352516006,1739146251658,-500.0,0.0001178,2]
[352516007,1739146251667,-500.0,0.0001178,2]
[352516008,1739146251676,-500.0,0.0001178,2]
[352516009,1739146251685,-1767.18,0.0001178,2]
[352516010,1739146251699,-500.0,0.0001178,2]
[352516011,1739146251708,-500.0,0.0001178,2]
[352516012,1739146251717,-265.10554976,0.0001178,2]
[352516013,1739146251727,-566.91,0.0001178,2]
[352516014,1739146251735,-500.0,0.0001178,2]
[352516015,1739146251744,-511.03,0.0001178,2]
[352516016,1739146251754,-500.0,0.0001178,2]
[352516017,1739146251763,-578.91,0.0001178,2]
[352516018,1739146251774,-500.0,0.0001178,2]
[352516019,1739146251783,-585.19438347,0.0001178,2]
[352516020,1739146251794,-500.0,0.0001178,2]
[352516021,1739146251803,-500.0,0.0001178,2]
[352516022,1739146251813,-500.0,0.0001178,2]
[352516023,1739146251822,-500.0,0.0001178,2]
[352516024,1739146251831,-500.0,0.0001178,2]
[352516025,1739146251841,-500.0,0.0001178,2]
[352516026,1739146251850,-500.0,0.0001178,2]
[352516027,1739146251861,-2815.39,0.0001178,2]
[352516028,1739146251870,-500.0,0.0001178,2]
[352516029,1739146251880,-1413.66,0.0001178,2]
[352516030,1739146251889,-500.0,0.0001178,2]
[352516031,1739146251898,-9547.74,0.0001178,2]
[352516032,1739146251908,-600.42,0.0001178,2]
[352516033,1739146251917,-6910.01,0.0001178,2]
[352516034,1739146251927,-550.72,0.0001178,2]
[352516035,1739146251935,-500.0,0.0001178,2]
[352516036,1739146251945,-500.0,0.0001178,2]
[352516037,1739146251954,-3346.66,0.0001178,2]
[352516038,1739146251963,-3213.66,0.0001178,2]
[352516039,1739146251972,-500.0,0.0001178,2]
[352516040,1739146251982,-3261.75,0.0001178,2]
[352516041,1739146251991,-500.0,0.0001178,2]
[352516042,1739146252002,-500.0,0.0001178,2]
[352516043,1739146252011,-809.81,0.0001178,2]
[352516044,1739146252020,-1761.83,0.0001178,2]
[352516045,1739146252029,-500.0,0.0001178,2]
[352516046,1739146252038,-500.0,0.0001178,2]
[352516047,1739146252048,-955.68,0.0001178,2]
[352516048,1739146252057,-500.0,0.0001178,2]
[352516049,1739146252066,-500.0,0.0001178,2]
[352516050,1739146252076,-500.0,0.0001178,2]
[352516051,1739146252086,-15127.72,0.0001178,2]
[352516052,1739146252097,-500.0,0.0001178,2]
[352516053,1739146252107,-1255.54,0.0001178,2]
[352516054,1739146252118,-1300.71,0.0001178,2]
[352516055,1739146252127,-902.82,0.0001178,2]
[352516056,1739146252137,-552.64,0.0001178,2]
[352516057,1739146252146,-500.0,0.0001178,2]
[352516058,1739146252156,-11240.82,0.0001178,2]
[352516059,1739146252165,-1665.46,0.0001178,2]
[352516060,1739146252175,-1372.43,0.0001178,2]
[352516061,1739146252186,-500.0,0.0001178,2]
[352516062,1739146252196,-500.0,0.0001178,2]
[352516063,1739146252206,-503.72873296,0.0001178,2]
[352516064,1739146252216,-871.63,0.0001178,2]
[352516065,1739146252225,-500.0,0.0001178,2]
[352516066,1739146252236,-893.65,0.0001178,2]
[352516067,1739146252245,-500.0,0.0001178,2]
[352516068,1739146252255,-500.0,0.0001178,2]
[352516069,1739146252265,-555.72,0.0001178,2]
[352516070,1739146252275,-500.0,0.0001178,2]
[352516071,1739146252284,-500.0,0.0001178,2]
[352516072,1739146252293,-500.0,0.0001178,2]
[352516073,1739146252304,-500.0,0.0001178,2]
[352516074,1739146252314,-651.08,0.0001178,2]
[352516075,1739146252324,-500.0,0.0001178,2]
[352516076,1739146252334,-708.55,0.0001178,2]
[352516077,1739146252344,-500.0,0.0001178,2]
[352516078,1739146252354,-500.0,0.0001178,2]
[352516079,1739146252364,-1666.17,0.0001178,2]
[352516080,1739146252374,-689.51,0.0001178,2]
[352516081,1739146252383,-970.62,0.0001178,2]
[352516082,1739146252392,-925.51,0.0001178,2]
[352516083,1739146252401,-501.84,0.0001178,2]
[352516084,1739146252410,-500.0,0.0001178,2]
[352516085,1739146252420,-2061.54,0.0001178,2]
[352516086,1739146252429,-520.83,0.0001178,2]
[352516087,1739146252440,-500.0,0.0001178,2]